[Event "Late-Titled-Tuesday-Blitz-January-30-2024"]
[Site "Chess.com"]
[Date "2024.01.30"]
[Round "8"]
[White "Hui_Li_Macau"]
[Black "ansko1999"]
[Result "0-1"]
[WhiteElo "2367"]
[BlackElo "2678"]
[TimeControl "180+1"]
[EndTime "15:27:44 PST"]
[Termination "ansko1999 won on time"]

1. e4 {[%clk 0:03:00.9]} 1... e5 {[%clk 0:02:58.3]} 2. Nf3 {[%clk 0:03:01]} 2...
d5 {[%clk 0:02:58.6]} 3. exd5 {[%clk 0:03:00.9]} 3... e4 {[%clk 0:02:57.2]} 4.
Qe2 {[%clk 0:03:01.2]} 4... Nf6 {[%clk 0:02:50.8]} 5. Nc3 {[%clk 0:03:01.3]}
5... Qe7 {[%clk 0:02:17.4]} 6. Ng5 {[%clk 0:02:33.6]} 6... Bf5 {[%clk
0:02:03.5]} 7. Qb5+ {[%clk 0:02:06.9]} 7... c6 {[%clk 0:02:03.5]} 8. dxc6 {[%clk
0:01:59.9]} 8... Nxc6 {[%clk 0:02:04.4]} 9. Qxf5 {[%clk 0:01:59.3]} 9... Nd4
{[%clk 0:02:04.5]} 10. Qa5 {[%clk 0:01:13.6]} 10... Nxc2+ {[%clk 0:02:01.4]} 11.
Kd1 {[%clk 0:01:12.8]} 11... Nxa1 {[%clk 0:02:01.9]} 12. Bb5+ {[%clk 0:01:06.3]}
12... Nd7 {[%clk 0:02:01.3]} 13. Re1 {[%clk 0:00:56.7]} 13... f5 {[%clk
0:01:28.5]} 14. Ngxe4 {[%clk 0:00:52.4]} 14... Kf7 {[%clk 0:01:22.2]} 15. Bc4+
{[%clk 0:00:46.3]} 15... Kg6 {[%clk 0:01:20.8]} 16. Ng3 {[%clk 0:00:37.1]} 16...
Qc5 {[%clk 0:01:16.9]} 17. Qxc5 {[%clk 0:00:21.3]} 17... Bxc5 {[%clk 0:01:17.8]}
18. Re6+ {[%clk 0:00:14.2]} 18... Nf6 {[%clk 0:01:16.1]} 19. b3 {[%clk
0:00:05.1]} 19... Rhe8 {[%clk 0:00:51.3]} 20. Bb2 {[%clk 0:00:04.3]} 20... Bxf2
{[%clk 0:00:36.3]} 21. Bxa1 {[%clk 0:00:03.4]} 21... a6 {[%clk 0:00:27.7]} 22.
Bb2 {[%clk 0:00:03.2]} 22... b5 {[%clk 0:00:27.2]} 23. Bd3 {[%clk 0:00:02.9]}
23... Rxe6 {[%clk 0:00:25.9]} 24. Bxf5+ {[%clk 0:00:03.2]} 24... Kf7 {[%clk
0:00:26.6]} 25. Bxe6+ {[%clk 0:00:03.2]} 25... Kxe6 {[%clk 0:00:27.5]} 26. Nge4
{[%clk 0:00:03.2]} 26... Bd4 {[%clk 0:00:26.6]} 27. Nxf6 {[%clk 0:00:02.1]}
27... Bxf6 {[%clk 0:00:27.5]} 28. Kc2 {[%clk 0:00:02]} 28... Rc8 {[%clk
0:00:26.8]} 29. Kd3 {[%clk 0:00:01.8]} 29... b4 {[%clk 0:00:24.6]} 30. Nd1
{[%clk 0:00:02]} 30... Bxb2 {[%clk 0:00:19.3]} 31. Nxb2 {[%clk 0:00:02.9]} 31...
Rf8 {[%clk 0:00:19.1]} 32. Ke2 {[%clk 0:00:02]} 32... Kd5 {[%clk 0:00:18.2]} 33.
Nd3 {[%clk 0:00:01.7]} 33... a5 {[%clk 0:00:17.7]} 34. Nb2 {[%clk 0:00:02.1]}
34... Kd4 {[%clk 0:00:17.5]} 35. Nc4 {[%clk 0:00:02.4]} 35... Re8+ {[%clk
0:00:17.8]} 36. Kf2 {[%clk 0:00:01.7]} 36... a4 {[%clk 0:00:17.6]} 37. Nb6
{[%clk 0:00:01.1]} 37... a3 {[%clk 0:00:16.6]} 0-1

[Event "Late-Titled-Tuesday-Blitz-January-30-2024"]
[Site "Chess.com"]
[Date "2024.01.30"]
[Round "8"]
[White "toninhojit"]
[Black "manitodeplomo"]
[Result "0-1"]
[WhiteElo "2519"]
[BlackElo "2693"]
[TimeControl "180+1"]
[EndTime "15:27:46 PST"]
[Termination "manitodeplomo won by resignation"]

1. d4 {[%clk 0:03:00.2]} 1... g6 {[%clk 0:02:59.5]} 2. c4 {[%clk 0:02:57.9]}
2... Bg7 {[%clk 0:03:00]} 3. Nf3 {[%clk 0:02:57.9]} 3... Nf6 {[%clk 0:02:57.5]}
4. Nc3 {[%clk 0:02:58.1]} 4... O-O {[%clk 0:02:57.4]} 5. e4 {[%clk 0:02:58.1]}
5... d6 {[%clk 0:02:58]} 6. Be2 {[%clk 0:02:57.7]} 6... c5 {[%clk 0:02:58.1]} 7.
O-O {[%clk 0:02:55.6]} 7... Nc6 {[%clk 0:02:58.6]} 8. d5 {[%clk 0:02:56]} 8...
Na5 {[%clk 0:02:58.7]} 9. h3 {[%clk 0:02:51.7]} 9... e5 {[%clk 0:02:58.1]} 10.
a3 {[%clk 0:02:42.8]} 10... b6 {[%clk 0:02:53.8]} 11. b4 {[%clk 0:02:41]} 11...
Nb7 {[%clk 0:02:53.3]} 12. Bg5 {[%clk 0:02:37.4]} 12... h6 {[%clk 0:02:52.3]}
13. Be3 {[%clk 0:02:37.7]} 13... Bd7 {[%clk 0:02:28.2]} 14. Qd2 {[%clk
0:02:37.7]} 14... Kh7 {[%clk 0:02:27.6]} 15. Nh2 {[%clk 0:02:32.2]} 15... Qc7
{[%clk 0:02:20]} 16. f4 {[%clk 0:02:20.3]} 16... exf4 {[%clk 0:02:12.4]} 17.
Bxf4 {[%clk 0:02:21.2]} 17... cxb4 {[%clk 0:02:01.7]} 18. axb4 {[%clk
0:02:22.1]} 18... a5 {[%clk 0:02:02]} 19. bxa5 {[%clk 0:01:56.8]} 19... bxa5
{[%clk 0:01:45.6]} 20. Kh1 {[%clk 0:01:42.7]} 20... Nc5 {[%clk 0:01:42.4]} 21.
Qc2 {[%clk 0:01:40.5]} 21... a4 {[%clk 0:01:38.3]} 22. Nf3 {[%clk 0:01:30.8]}
22... Rfe8 {[%clk 0:01:27.7]} 23. e5 {[%clk 0:01:09.4]} 23... dxe5 {[%clk
0:01:23.4]} 24. Be3 {[%clk 0:01:09.6]} 24... Bf5 {[%clk 0:01:14.5]} 25. Qd1
{[%clk 0:00:58.8]} 25... Nfe4 {[%clk 0:01:11.2]} 26. Nb5 {[%clk 0:00:48.6]}
26... Qd7 {[%clk 0:01:09.3]} 27. Qe1 {[%clk 0:00:37.9]} 27... Nb3 {[%clk
0:01:04.5]} 28. Ra2 {[%clk 0:00:30.9]} 28... g5 {[%clk 0:00:57.2]} 29. Nh2
{[%clk 0:00:30.5]} 29... Bg6 {[%clk 0:00:55.9]} 30. Bf3 {[%clk 0:00:28.9]} 30...
Nec5 {[%clk 0:00:48.2]} 31. Qf2 {[%clk 0:00:29.2]} 31... Nd3 {[%clk 0:00:46.7]}
32. Qe2 {[%clk 0:00:22.1]} 32... Nf4 {[%clk 0:00:30.4]} 33. Qd1 {[%clk
0:00:19.2]} 33... e4 {[%clk 0:00:22.3]} 34. Be2 {[%clk 0:00:17]} 34... Nxe2
{[%clk 0:00:20.8]} 35. Qxe2 {[%clk 0:00:17.9]} 35... f5 {[%clk 0:00:21]} 36. Rd1
{[%clk 0:00:16]} 36... f4 {[%clk 0:00:20.6]} 37. Bd4 {[%clk 0:00:16.2]} 37... f3
{[%clk 0:00:20.6]} 38. Qf1 {[%clk 0:00:14.8]} 38... fxg2+ {[%clk 0:00:18.6]} 39.
Qxg2 {[%clk 0:00:15.7]} 39... e3 {[%clk 0:00:19.2]} 40. Bxg7 {[%clk 0:00:12.5]}
40... Be4 {[%clk 0:00:19.3]} 41. Nf3 {[%clk 0:00:12.7]} 41... Qxg7 {[%clk
0:00:19]} 42. Kh2 {[%clk 0:00:12.8]} 42... Nd2 {[%clk 0:00:18.5]} 43. Nc7 {[%clk
0:00:11]} 43... Qxc7+ {[%clk 0:00:16.2]} 44. Kh1 {[%clk 0:00:08]} 44... Bxf3
{[%clk 0:00:15.9]} 0-1

[Event "Late-Titled-Tuesday-Blitz-January-30-2024"]
[Site "Chess.com"]
[Date "2024.01.30"]
[Round "8"]
[White "GMRafpig"]
[Black "Baby_Legs"]
[Result "0-1"]
[WhiteElo "2731"]
[BlackElo "2630"]
[TimeControl "180+1"]
[EndTime "15:27:48 PST"]
[Termination "Baby_Legs won on time"]

1. c4 {[%clk 0:03:00.9]} 1... e6 {[%clk 0:02:57.5]} 2. g3 {[%clk 0:02:59.8]}
2... Nf6 {[%clk 0:02:56.7]} 3. Bg2 {[%clk 0:02:58.9]} 3... d5 {[%clk 0:02:57.2]}
4. Nf3 {[%clk 0:02:57]} 4... Bd6 {[%clk 0:02:54.2]} 5. O-O {[%clk 0:02:54.8]}
5... O-O {[%clk 0:02:54.7]} 6. d4 {[%clk 0:02:41.5]} 6... c6 {[%clk 0:02:55]} 7.
b3 {[%clk 0:02:38.5]} 7... Ne4 {[%clk 0:02:54.2]} 8. Bb2 {[%clk 0:02:36.9]} 8...
Nd7 {[%clk 0:02:51.7]} 9. Nbd2 {[%clk 0:02:35.6]} 9... f5 {[%clk 0:02:51.4]} 10.
Qc2 {[%clk 0:02:33.9]} 10... Qe7 {[%clk 0:02:47.1]} 11. e3 {[%clk 0:02:29.6]}
11... b6 {[%clk 0:02:45.9]} 12. a3 {[%clk 0:02:14.3]} 12... Bb7 {[%clk
0:02:43.1]} 13. b4 {[%clk 0:02:13.4]} 13... a5 {[%clk 0:02:35.9]} 14. c5 {[%clk
0:02:07.1]} 14... bxc5 {[%clk 0:02:34.2]} 15. dxc5 {[%clk 0:01:51.1]} 15... Bc7
{[%clk 0:02:33.4]} 16. Rfd1 {[%clk 0:01:46]} 16... e5 {[%clk 0:02:25.8]} 17. b5
{[%clk 0:01:28.3]} 17... Rac8 {[%clk 0:02:08.2]} 18. bxc6 {[%clk 0:01:11.8]}
18... Bxc6 {[%clk 0:02:09.1]} 19. Rac1 {[%clk 0:01:07.5]} 19... Rb8 {[%clk
0:02:07.1]} 20. Ba1 {[%clk 0:01:00.8]} 20... Kh8 {[%clk 0:02:04.4]} 21. Bf1
{[%clk 0:00:50.3]} 21... Qe6 {[%clk 0:01:32.9]} 22. Rb1 {[%clk 0:00:42.6]} 22...
h6 {[%clk 0:01:24.3]} 23. Rxb8 {[%clk 0:00:41.9]} 23... Rxb8 {[%clk 0:01:25.2]}
24. Nxe4 {[%clk 0:00:41.6]} 24... fxe4 {[%clk 0:01:18.4]} 25. Nd2 {[%clk
0:00:41.2]} 25... Rf8 {[%clk 0:01:06]} 26. Nb1 {[%clk 0:00:37.6]} 26... d4
{[%clk 0:00:58.5]} 27. exd4 {[%clk 0:00:32.8]} 27... exd4 {[%clk 0:00:58.6]} 28.
Bxd4 {[%clk 0:00:31.1]} 28... e3 {[%clk 0:00:57.1]} 29. fxe3 {[%clk 0:00:31.1]}
29... Ne5 {[%clk 0:00:51.3]} 30. Bxe5 {[%clk 0:00:30.9]} 30... Qxe5 {[%clk
0:00:52.2]} 31. Qd2 {[%clk 0:00:17.4]} 31... Rd8 {[%clk 0:00:46.4]} 32. Qxd8+
{[%clk 0:00:11.9]} 32... Bxd8 {[%clk 0:00:47.3]} 33. Rxd8+ {[%clk 0:00:12]}
33... Kh7 {[%clk 0:00:47.8]} 34. Bd3+ {[%clk 0:00:12]} 34... g6 {[%clk
0:00:44.6]} 35. Rd6 {[%clk 0:00:09.5]} 35... Qxe3+ {[%clk 0:00:42.4]} 36. Kf1
{[%clk 0:00:10]} 36... Be4 {[%clk 0:00:21.6]} 37. Bxe4 {[%clk 0:00:07.9]} 37...
Qxe4 {[%clk 0:00:22.5]} 38. Nd2 {[%clk 0:00:06.8]} 38... Qf5+ {[%clk 0:00:21.4]}
39. Ke2 {[%clk 0:00:04.4]} 39... Qxc5 {[%clk 0:00:20.5]} 40. Ne4 {[%clk
0:00:05.2]} 40... Qxa3 {[%clk 0:00:12.7]} 41. Rd7+ {[%clk 0:00:03.6]} 41... Kh8
{[%clk 0:00:12.9]} 0-1

[Event "Late-Titled-Tuesday-Blitz-January-30-2024"]
[Site "Chess.com"]
[Date "2024.01.30"]
[Round "8"]
[White "PawnEatingZombie"]
[Black "vladoboch"]
[Result "1-0"]
[WhiteElo "2193"]
[BlackElo "2460"]
[TimeControl "180+1"]
[EndTime "15:27:48 PST"]
[Termination "PawnEatingZombie won on time"]

1. e4 {[%clk 0:03:00.9]} 1... c5 {[%clk 0:02:59.7]} 2. c3 {[%clk 0:03:00.6]}
2... Nc6 {[%clk 0:03:00.6]} 3. d4 {[%clk 0:02:59.6]} 3... cxd4 {[%clk
0:03:01.1]} 4. cxd4 {[%clk 0:02:59.8]} 4... d5 {[%clk 0:03:01.3]} 5. exd5 {[%clk
0:03:00.1]} 5... Qxd5 {[%clk 0:03:00.6]} 6. Nf3 {[%clk 0:02:57.5]} 6... Bg4
{[%clk 0:02:40.8]} 7. Be2 {[%clk 0:02:57.2]} 7... e6 {[%clk 0:02:37]} 8. Nc3
{[%clk 0:02:56.3]} 8... Bb4 {[%clk 0:02:37.7]} 9. O-O {[%clk 0:02:54.5]} 9...
Bxc3 {[%clk 0:02:36.1]} 10. bxc3 {[%clk 0:02:55.1]} 10... Nf6 {[%clk 0:02:35.5]}
11. h3 {[%clk 0:02:46.5]} 11... Bf5 {[%clk 0:02:29.6]} 12. c4 {[%clk 0:02:42.3]}
12... Qd8 {[%clk 0:02:27.6]} 13. Be3 {[%clk 0:02:41.4]} 13... O-O {[%clk
0:02:27.6]} 14. Qb3 {[%clk 0:02:36.1]} 14... Qc7 {[%clk 0:02:17.6]} 15. Rac1
{[%clk 0:02:31.8]} 15... Rfd8 {[%clk 0:02:17.3]} 16. Rfd1 {[%clk 0:02:31.3]}
16... a5 {[%clk 0:02:04.6]} 17. d5 {[%clk 0:02:19.2]} 17... a4 {[%clk
0:02:04.8]} 18. Qb6 {[%clk 0:02:09.5]} 18... Qxb6 {[%clk 0:01:51.2]} 19. Bxb6
{[%clk 0:02:08.3]} 19... exd5 {[%clk 0:01:52.1]} 20. Bxd8 {[%clk 0:02:07.3]}
20... Rxd8 {[%clk 0:01:53]} 21. cxd5 {[%clk 0:02:05.8]} 21... Rxd5 {[%clk
0:01:53.3]} 22. Rxd5 {[%clk 0:02:02.1]} 22... Nxd5 {[%clk 0:01:54.2]} 23. Bb5
{[%clk 0:01:43.7]} 23... Ncb4 {[%clk 0:01:50.4]} 24. a3 {[%clk 0:01:35.6]} 24...
Na2 {[%clk 0:01:50.8]} 25. Rc5 {[%clk 0:01:24.5]} 25... Nac3 {[%clk 0:01:49.9]}
26. Bxa4 {[%clk 0:01:09.8]} 26... b6 {[%clk 0:01:45.6]} 27. Rc4 {[%clk
0:01:00.4]} 27... b5 {[%clk 0:01:46.1]} 28. Bxb5 {[%clk 0:01:00.7]} 28... Nxb5
{[%clk 0:01:46.2]} 29. a4 {[%clk 0:01:00.1]} 29... Nd6 {[%clk 0:01:42]} 30. Rc5
{[%clk 0:00:55.4]} 30... Be6 {[%clk 0:01:33.5]} 31. a5 {[%clk 0:00:47.3]} 31...
Nb4 {[%clk 0:01:25.4]} 32. Nd4 {[%clk 0:00:43.7]} 32... Bc4 {[%clk 0:01:19.9]}
33. Nc6 {[%clk 0:00:42.9]} 33... Na6 {[%clk 0:01:13.6]} 34. Re5 {[%clk
0:00:35.7]} 34... Kf8 {[%clk 0:01:08.4]} 35. Re1 {[%clk 0:00:33.6]} 35... Bd5
{[%clk 0:01:02.2]} 36. Nd4 {[%clk 0:00:31]} 36... Nc4 {[%clk 0:00:55.2]} 37. f3
{[%clk 0:00:28.2]} 37... Nc5 {[%clk 0:00:38.1]} 38. Ra1 {[%clk 0:00:27]} 38...
Nb3 {[%clk 0:00:36.3]} 39. Nxb3 {[%clk 0:00:26.4]} 39... Ne3 {[%clk 0:00:31.3]}
40. a6 {[%clk 0:00:24.9]} 40... Nc2 {[%clk 0:00:29.7]} 41. Rb1 {[%clk
0:00:18.7]} 41... Na3 {[%clk 0:00:19.2]} 42. Rd1 {[%clk 0:00:17.5]} 42... Bc6
{[%clk 0:00:07.6]} 43. a7 {[%clk 0:00:16.9]} 43... Ke7 {[%clk 0:00:07.8]} 44.
Rc1 {[%clk 0:00:14.6]} 44... Bd5 {[%clk 0:00:04.7]} 45. Rc8 {[%clk 0:00:13.1]}
1-0

[Event "Late-Titled-Tuesday-Blitz-January-30-2024"]
[Site "Chess.com"]
[Date "2024.01.30"]
[Round "8"]
[White "jcibarra"]
[Black "DenLaz"]
[Result "0-1"]
[WhiteElo "2874"]
[BlackElo "3047"]
[TimeControl "180+1"]
[EndTime "15:28:04 PST"]
[Termination "DenLaz won on time"]

1. e4 {[%clk 0:03:00.9]} 1... c5 {[%clk 0:03:00.4]} 2. Nf3 {[%clk 0:03:00.6]}
2... e6 {[%clk 0:03:00.7]} 3. d4 {[%clk 0:02:59.8]} 3... cxd4 {[%clk 0:03:01.6]}
4. Nxd4 {[%clk 0:03:00.6]} 4... Nc6 {[%clk 0:03:02]} 5. Nc3 {[%clk 0:03:00.8]}
5... Qc7 {[%clk 0:03:02.7]} 6. Be3 {[%clk 0:02:59.6]} 6... a6 {[%clk 0:03:03.3]}
7. g4 {[%clk 0:02:59.8]} 7... h6 {[%clk 0:03:03.5]} 8. Rg1 {[%clk 0:02:58.2]}
8... Nf6 {[%clk 0:03:00.1]} 9. h4 {[%clk 0:02:47]} 9... Bb4 {[%clk 0:02:49.5]}
10. Nxc6 {[%clk 0:02:05.2]} 10... bxc6 {[%clk 0:02:44.1]} 11. g5 {[%clk
0:01:59.7]} 11... hxg5 {[%clk 0:02:30]} 12. hxg5 {[%clk 0:01:59.5]} 12... Nxe4
{[%clk 0:02:20.2]} 13. Qd4 {[%clk 0:01:59.1]} 13... Nxc3 {[%clk 0:02:20.1]} 14.
Qxg7 {[%clk 0:01:25.3]} 14... Nd5+ {[%clk 0:01:37.1]} 15. c3 {[%clk 0:01:25.2]}
15... Rf8 {[%clk 0:01:36.7]} 16. cxb4 {[%clk 0:01:19.5]} 16... Nxe3 {[%clk
0:01:34.6]} 17. fxe3 {[%clk 0:01:19.3]} 17... Qh2 {[%clk 0:01:33.9]} 18. g6
{[%clk 0:01:12.4]} 18... Qh4+ {[%clk 0:01:13.9]} 19. Kd2 {[%clk 0:01:11.6]}
19... fxg6 {[%clk 0:01:09.4]} 20. Bd3 {[%clk 0:00:40.1]} 20... Qxb4+ {[%clk
0:00:53.1]} 21. Ke2 {[%clk 0:00:33.5]} 21... Rb8 {[%clk 0:00:46.7]} 22. b3
{[%clk 0:00:30.1]} 22... Kd8 {[%clk 0:00:43.8]} 23. Rxg6 {[%clk 0:00:22.6]}
23... Re8 {[%clk 0:00:21.9]} 24. Rc1 {[%clk 0:00:20.5]} 24... Kc7 {[%clk
0:00:19.2]} 25. Qe5+ {[%clk 0:00:19.8]} 25... Qd6 {[%clk 0:00:18.9]} 26. Qa5+
{[%clk 0:00:20.1]} 26... Rb6 {[%clk 0:00:19.6]} 27. Rc4 {[%clk 0:00:16.3]} 27...
Qh2+ {[%clk 0:00:19.2]} 28. Kd1 {[%clk 0:00:16.8]} 28... Qh1+ {[%clk 0:00:16.3]}
29. Kd2 {[%clk 0:00:16.8]} 29... Qh2+ {[%clk 0:00:10.4]} 30. Kc1 {[%clk
0:00:12.7]} 30... Qh1+ {[%clk 0:00:08.2]} 31. Kb2 {[%clk 0:00:11.7]} 31... Qd5
{[%clk 0:00:08.8]} 32. Qc3 {[%clk 0:00:08.7]} 32... Rf8 {[%clk 0:00:09]} 33. Qc2
{[%clk 0:00:04.3]} 33... Qe5+ {[%clk 0:00:08.8]} 34. Ka3 {[%clk 0:00:04.1]}
34... a5 {[%clk 0:00:07]} 35. e4 {[%clk 0:00:03.5]} 35... Qd6+ {[%clk
0:00:05.7]} 36. Kb2 {[%clk 0:00:04.1]} 36... Qe5+ {[%clk 0:00:06.1]} 37. Ka3
{[%clk 0:00:04.3]} 37... Rb4 {[%clk 0:00:06]} 38. Rxb4 {[%clk 0:00:03.7]} 38...
axb4+ {[%clk 0:00:06.9]} 39. Kxb4 {[%clk 0:00:04.4]} 39... Qd4+ {[%clk
0:00:07.4]} 40. Bc4 {[%clk 0:00:04.4]} 40... Ba6 {[%clk 0:00:05.2]} 41. Qh2+
{[%clk 0:00:03.9]} 41... e5 {[%clk 0:00:05.3]} 42. Rg5 {[%clk 0:00:03.5]} 42...
Bxc4 {[%clk 0:00:05.3]} 43. Rxe5 {[%clk 0:00:01.9]} 43... Rb8+ {[%clk
0:00:03.3]} 44. Rb5+ {[%clk 0:00:02]} 44... d6 {[%clk 0:00:02.6]} 0-1

[Event "Late-Titled-Tuesday-Blitz-January-30-2024"]
[Site "Chess.com"]
[Date "2024.01.30"]
[Round "8"]
[White "HansOnTwitch"]
[Black "SpeedofLight0"]
[Result "1-0"]
[WhiteElo "3217"]
[BlackElo "3028"]
[TimeControl "180+1"]
[EndTime "15:28:16 PST"]
[Termination "HansOnTwitch won by checkmate"]

1. e4 {[%clk 0:02:57.7]} 1... Nc6 {[%clk 0:02:56.6]} 2. Nf3 {[%clk 0:02:56.1]}
2... e5 {[%clk 0:02:56.4]} 3. Bc4 {[%clk 0:02:53]} 3... Nf6 {[%clk 0:02:53.6]}
4. d3 {[%clk 0:02:49.1]} 4... Bc5 {[%clk 0:02:53.3]} 5. O-O {[%clk 0:02:49.1]}
5... O-O {[%clk 0:02:51.8]} 6. c3 {[%clk 0:02:49.5]} 6... d5 {[%clk 0:02:51.8]}
7. exd5 {[%clk 0:02:49.6]} 7... Nxd5 {[%clk 0:02:52.7]} 8. Re1 {[%clk
0:02:46.5]} 8... Bg4 {[%clk 0:02:52.3]} 9. a4 {[%clk 0:02:43.6]} 9... a5 {[%clk
0:02:50.9]} 10. h3 {[%clk 0:02:42.2]} 10... Bh5 {[%clk 0:02:50.9]} 11. Nbd2
{[%clk 0:02:42.1]} 11... Nb6 {[%clk 0:02:50.2]} 12. Bb3 {[%clk 0:02:42.2]} 12...
Qxd3 {[%clk 0:02:49.9]} 13. Nxe5 {[%clk 0:02:42.2]} 13... Qf5 {[%clk 0:02:43]}
14. Nef3 {[%clk 0:02:40.4]} 14... Rad8 {[%clk 0:02:41.5]} 15. Qe2 {[%clk
0:02:34.4]} 15... Nd5 {[%clk 0:02:33.9]} 16. Qe4 {[%clk 0:02:22.6]} 16... Qd7
{[%clk 0:02:14.2]} 17. Qh4 {[%clk 0:02:09.9]} 17... Bg6 {[%clk 0:02:10.9]} 18.
Ne4 {[%clk 0:02:01.9]} 18... Be7 {[%clk 0:01:51]} 19. Bg5 {[%clk 0:02:01]} 19...
Bxg5 {[%clk 0:01:50.2]} 20. Qxg5 {[%clk 0:01:35.3]} 20... Qf5 {[%clk 0:01:31.7]}
21. Qg3 {[%clk 0:01:28.6]} 21... Qf4 {[%clk 0:01:10.3]} 22. Bxd5 {[%clk
0:01:25.3]} 22... Qxg3 {[%clk 0:01:09.1]} 23. Bxf7+ {[%clk 0:01:24.5]} 23...
Rxf7 {[%clk 0:01:01.4]} 24. fxg3 {[%clk 0:01:17.8]} 24... Re7 {[%clk 0:01:01]}
25. Nc5 {[%clk 0:01:16.3]} 25... Rxe1+ {[%clk 0:01:00.1]} 26. Rxe1 {[%clk
0:01:16.1]} 26... b6 {[%clk 0:00:59.9]} 27. Ne6 {[%clk 0:01:16.3]} 27... Rd7
{[%clk 0:00:56.1]} 28. g4 {[%clk 0:01:14.5]} 28... Bc2 {[%clk 0:00:50.1]} 29.
Ra1 {[%clk 0:00:54.6]} 29... h6 {[%clk 0:00:41.5]} 30. Ned4 {[%clk 0:00:54.1]}
30... Nxd4 {[%clk 0:00:40.6]} 31. Nxd4 {[%clk 0:00:55]} 31... Bg6 {[%clk
0:00:38.2]} 32. Re1 {[%clk 0:00:55]} 32... Bf7 {[%clk 0:00:24.8]} 33. h4 {[%clk
0:00:34.7]} 33... c5 {[%clk 0:00:24.6]} 34. Nf3 {[%clk 0:00:35]} 34... Bb3
{[%clk 0:00:24.1]} 35. Re8+ {[%clk 0:00:35]} 35... Kh7 {[%clk 0:00:22.9]} 36.
Rb8 {[%clk 0:00:35]} 36... Rd6 {[%clk 0:00:22.4]} 37. Ne5 {[%clk 0:00:32.8]}
37... Bxa4 {[%clk 0:00:16.2]} 38. h5 {[%clk 0:00:32.7]} 38... Re6 {[%clk
0:00:16.3]} 39. Ng6 {[%clk 0:00:29.2]} 39... Re8 {[%clk 0:00:16]} 40. Rxb6
{[%clk 0:00:29.4]} 40... Bc2 {[%clk 0:00:16.2]} 41. Kf2 {[%clk 0:00:14.1]} 41...
a4 {[%clk 0:00:16.3]} 42. Nf4 {[%clk 0:00:12.4]} 42... Re4 {[%clk 0:00:14.9]}
43. Kf3 {[%clk 0:00:12.4]} 43... Re1 {[%clk 0:00:15.2]} 44. g5 {[%clk 0:00:07]}
44... hxg5 {[%clk 0:00:14.7]} 45. Nh3 {[%clk 0:00:07.5]} 45... Re5 {[%clk
0:00:10.4]} 46. Nf2 {[%clk 0:00:03.9]} 46... Rf5+ {[%clk 0:00:07]} 47. Kg3
{[%clk 0:00:04.4]} 47... Re5 {[%clk 0:00:06.6]} 48. Ng4 {[%clk 0:00:04.2]} 48...
Re1 {[%clk 0:00:06.9]} 49. Rb7 {[%clk 0:00:03.9]} 49... Rb1 {[%clk 0:00:07.3]}
50. h6 {[%clk 0:00:02]} 50... Bb3 {[%clk 0:00:04.3]} 51. Rxg7+ {[%clk
0:00:02.4]} 51... Kh8 {[%clk 0:00:04.6]} 52. Nf6 {[%clk 0:00:03]} 52... Bc2
{[%clk 0:00:02.6]} 53. Rg8# {[%clk 0:00:02.9]} 1-0

[Event "Late-Titled-Tuesday-Blitz-January-30-2024"]
[Site "Chess.com"]
[Date "2024.01.30"]
[Round "8"]
[White "szachmistrz2500"]
[Black "SuanFernandes"]
[Result "0-1"]
[WhiteElo "2492"]
[BlackElo "2344"]
[TimeControl "180+1"]
[EndTime "15:28:22 PST"]
[Termination "SuanFernandes won on time"]

1. d4 {[%clk 0:03:00.9]} 1... d5 {[%clk 0:02:59.7]} 2. c4 {[%clk 0:02:59.3]}
2... e6 {[%clk 0:02:59.6]} 3. Nc3 {[%clk 0:02:57.6]} 3... Nf6 {[%clk 0:03:00.1]}
4. Bg5 {[%clk 0:02:57]} 4... dxc4 {[%clk 0:02:59.5]} 5. e3 {[%clk 0:02:49.7]}
5... c5 {[%clk 0:02:59.7]} 6. Bxc4 {[%clk 0:02:46.5]} 6... cxd4 {[%clk 0:02:58]}
7. exd4 {[%clk 0:02:45.6]} 7... Nc6 {[%clk 0:02:58.3]} 8. Nf3 {[%clk 0:02:44.7]}
8... Be7 {[%clk 0:02:57.5]} 9. O-O {[%clk 0:02:44]} 9... O-O {[%clk 0:02:57.3]}
10. Qd2 {[%clk 0:02:34.6]} 10... b6 {[%clk 0:02:53]} 11. Rad1 {[%clk 0:02:33.4]}
11... Nb4 {[%clk 0:02:50]} 12. a3 {[%clk 0:02:18.6]} 12... Nbd5 {[%clk
0:02:49.6]} 13. Ne5 {[%clk 0:02:12.3]} 13... Bb7 {[%clk 0:02:48]} 14. Rfe1
{[%clk 0:02:09.8]} 14... Rc8 {[%clk 0:02:47.1]} 15. Ba2 {[%clk 0:02:04.8]} 15...
Nxc3 {[%clk 0:02:43.6]} 16. bxc3 {[%clk 0:02:04.5]} 16... Ne4 {[%clk 0:02:40.9]}
17. Bxe7 {[%clk 0:01:59.5]} 17... Qxe7 {[%clk 0:02:40.7]} 18. Rxe4 {[%clk
0:01:47]} 18... Bxe4 {[%clk 0:02:40.4]} 19. c4 {[%clk 0:01:45.9]} 19... Qxa3
{[%clk 0:02:36.7]} 20. d5 {[%clk 0:01:44.1]} 20... Rfd8 {[%clk 0:02:27.5]} 21.
Qf4 {[%clk 0:01:41]} 21... Bg6 {[%clk 0:02:08.5]} 22. Nxg6 {[%clk 0:01:36.2]}
22... hxg6 {[%clk 0:02:06.1]} 23. Qd2 {[%clk 0:01:31.7]} 23... Rd6 {[%clk
0:02:02.4]} 24. h3 {[%clk 0:01:30.8]} 24... Rcd8 {[%clk 0:02:02.4]} 25. Re1
{[%clk 0:01:27]} 25... exd5 {[%clk 0:01:52.5]} 26. cxd5 {[%clk 0:01:26.5]} 26...
b5 {[%clk 0:01:51.5]} 27. Re3 {[%clk 0:01:25.5]} 27... Qc5 {[%clk 0:01:45.4]}
28. Rc3 {[%clk 0:01:24.7]} 28... Qb6 {[%clk 0:01:45]} 29. Qg5 {[%clk 0:01:16.3]}
29... b4 {[%clk 0:01:40.3]} 30. Re3 {[%clk 0:01:14.4]} 30... a5 {[%clk
0:01:36.5]} 31. Bb3 {[%clk 0:01:12]} 31... a4 {[%clk 0:01:29.2]} 32. Bxa4 {[%clk
0:01:09.9]} 32... Rxd5 {[%clk 0:01:28.4]} 33. Qf4 {[%clk 0:00:58.2]} 33... Qd6
{[%clk 0:01:22.7]} 34. Qxd6 {[%clk 0:00:41.9]} 34... R5xd6 {[%clk 0:01:20.4]}
35. Re7 {[%clk 0:00:41.3]} 35... Rd3 {[%clk 0:01:16.2]} 36. Rb7 {[%clk
0:00:40.6]} 36... R8d4 {[%clk 0:01:11.2]} 37. Be8 {[%clk 0:00:40.4]} 37... Rd1+
{[%clk 0:00:56.6]} 38. Kh2 {[%clk 0:00:40.1]} 38... Rf4 {[%clk 0:00:36.7]} 39.
Kg3 {[%clk 0:00:39.9]} 39... g5 {[%clk 0:00:35.4]} 40. f3 {[%clk 0:00:39.6]}
40... Kf8 {[%clk 0:00:32]} 41. Bc6 {[%clk 0:00:34.5]} 41... Rdd4 {[%clk
0:00:21.6]} 42. Be4 {[%clk 0:00:25.1]} 42... g6 {[%clk 0:00:18.3]} 43. Bc2
{[%clk 0:00:20.9]} 43... f5 {[%clk 0:00:14]} 44. Bb3 {[%clk 0:00:19.6]} 44...
Rd3 {[%clk 0:00:13.2]} 45. Be6 {[%clk 0:00:17]} 45... Rc3 {[%clk 0:00:11.9]} 46.
Rf7+ {[%clk 0:00:13.1]} 46... Ke8 {[%clk 0:00:11.9]} 47. Rb7 {[%clk 0:00:13.7]}
47... Rd4 {[%clk 0:00:09.2]} 48. Bf7+ {[%clk 0:00:10.2]} 48... Kd8 {[%clk
0:00:08.3]} 49. Bxg6 {[%clk 0:00:10.5]} 49... f4+ {[%clk 0:00:08.5]} 50. Kg4
{[%clk 0:00:10.4]} 50... Rc5 {[%clk 0:00:08]} 51. Bf5 {[%clk 0:00:04.6]} 51...
Rd2 {[%clk 0:00:08.2]} 52. Be4 {[%clk 0:00:01.3]} 52... Rxg2+ {[%clk 0:00:08.4]}
53. Kh5 {[%clk 0:00:01.7]} 53... Rb2 {[%clk 0:00:08.6]} 0-1